bitfinex-derivatives/quotes_ETHF0:USTF0_20241231
["timestamp","ask_amount","ask_price","bid_price","bid_amount"]
[1735628908018,0.29816,3358.7,3358.6,1.16537]
[1735628910020,0.7453,3359.2,3358.6,0.8672]
[1735628910207,0.29815,3358.9,3358.8,0.29814]
[1735628915820,3.2078,3359.3,3358.6,0.8672]
[1735628916023,0.29813,3359.2,3359.1,0.29812]
[1735628917624,3.2078,3359.3,3359.2,0.29812]
[1735628918426,3.2078,3359.3,3359.2,41.09812]
[1735628918629,3.50591,3359.3,3359.2,41.09812]
[1735628920027,0.29811,3359.3,3359.2,41.09812]
[1735628921628,0.2981,3359.5,3359.4,0.29809]
[1735628922531,0.2981,3359.5,3359.4,0.72669]
[1735628924332,6.35147979,3359.7,3359.0,3.2078]
[1735628924525,0.29813,3359.2,3359.1,0.74152]
[1735628924726,0.29813,3359.2,3359.1,0.4434]
[1735628925032,0.29813,3359.2,3359.1,0.74153]
[1735628928634,0.29813,3359.2,3359.1,41.54153]
[1735628931335,0.29813,3359.2,3359.1,41.2434]
[1735628931532,0.29813,3359.2,3359.1,41.54153]
[1735628932031,0.29813,3359.2,3359.1,41.2434]
[1735628932235,0.29813,3359.2,3359.1,40.8]
[1735628933232,2.68377979,3359.4,3359.0,3.2078]
[1735628933535,0.74123,3359.1,3359.0,3.2078]
[1735628933738,0.74123,3359.1,3359.0,44.0078]
[1735628934135,0.74123,3359.1,3359.0,40.8]
[1735628934635,2.99280979,3359.1,3359.0,40.8]
[1735628934831,2.69467979,3359.1,3358.5,0.9018]
[1735628935031,2.69467979,3359.1,3358.3,0.29819]
[1735628935032,0.2982,3358.4,3358.3,0.29819]
[1735628935538,0.2982,3358.4,3358.3,41.09819]
[1735628935731,0.2982,3358.4,3358.3,40.8]
[1735628936239,0.2982,3358.4,3358.3,41.0982]
[1735628938730,0.2982,3358.4,3358.3,40.8]
[1735628938940,0.2982,3358.4,3358.0,4.69060264]
[1735628938941,0.29821,3358.1,3358.0,4.69060264]
[1735628939233,5.75758979,3358.1,3358.0,4.69060264]
[1735628940030,5.89977979,3358.1,3357.2,7.89840264]
[1735628940238,5.89977979,3358.1,3357.6,0.4339]
[1735628940438,5.89977979,3358.1,3357.2,7.89840264]
[1735628940439,0.74557,3358.0,3357.2,7.89840264]
[1735628940640,5.89977979,3358.1,3357.3,41.2339]
[1735628940841,0.29825,3357.8,3357.7,0.29824]
[1735628941739,5.89977979,3358.1,3357.5,0.29826]
[1735628941740,0.29827,3357.6,3357.5,0.29826]
[1735628942342,0.29828,3357.4,3357.3,41.2339]
[1735628942736,0.29828,3357.4,3357.3,41.53219]
[1735628943041,0.29828,3357.4,3357.3,41.2339]
[1735628943249,0.29828,3357.4,3357.3,41.53219]
[1735628943943,0.29828,3357.5,3357.4,0.29827]
[1735628944334,0.29828,3357.4,3357.3,41.2339]
[1735628944537,0.29828,3357.4,3357.3,41.53219]
[1735628946045,0.29826,3357.7,3357.6,0.29825]
[1735628946746,0.29827,3357.6,3357.5,0.29826]
[1735628947247,0.29827,3357.6,3357.5,40.8]
[1735628949740,0.29829,3357.3,3357.2,3.2078]
[1735628951143,5.45937979,3357.7,3357.2,3.2078]
[1735628951345,0.29828,3357.4,3357.3,0.29828]
[1735628951852,0.29828,3357.4,3357.3,41.09828]
[1735628952144,0.8625,3358.0,3357.3,40.8]
[1735628952145,3.11407979,3358.0,3357.3,40.8]
[1735628952345,0.29824,3357.9,3357.8,0.29823]
[1735628952553,3.50603,3358.1,3358.0,0.29822]
[1735628953148,3.50603,3358.1,3358.0,41.09822]
[1735628953954,3.95326,3358.5,3358.0,40.8]
[1735628954151,0.29821,3358.3,3358.2,0.2982]
[1735628954355,3.50599,3358.5,3358.4,0.29819]
[1735628954549,0.29817,3358.7,3358.6,0.29816]
[1735628955454,0.4589,3359.1,3358.0,46.25937979]
[1735628955657,0.29815,3358.8,3358.7,0.29816]
[1735628956557,3.2078,3359.2,3358.4,0.74546]
[1735628956756,0.29815,3358.9,3358.8,0.29815]
[1735628957056,0.29815,3358.9,3358.8,41.09815]
[1735628958355,0.29815,3358.9,3358.8,40.8]
[1735628958744,0.29815,3358.9,3358.8,41.09815]
[1735628959259,0.29815,3358.9,3358.8,40.8]
[1735628960359,0.29814,3359.0,3358.9,0.29814]
[1735628960956,2.25157979,3359.5,3358.8,44.0078]
[1735628961258,0.29812,3359.3,3359.2,0.29811]
[1735628961459,0.29812,3359.2,3359.1,0.29812]
[1735628962563,0.29814,3359.1,3359.0,0.29813]
[1735628965466,2.25157979,3359.5,3358.8,44.0078]
[1735628965967,0.29813,3359.1,3359.0,0.29813]
[1735628966163,0.29814,3359.0,3358.9,0.29814]
[1735628966365,2.99682979,3359.5,3359.0,0.29813]
[1735628966366,0.29813,3359.1,3359.0,0.29813]
[1735628967366,2.25157979,3359.5,3358.8,3.2078]
[1735628967666,0.74527,3359.4,3358.8,3.2078]
[1735628967866,1.17787,3359.4,3358.8,3.2078]
[1735628968168,0.29814,3358.9,3358.8,3.50595]
[1735628968372,0.29814,3358.9,3358.8,3.2078]
[1735628968562,0.29814,3358.9,3358.8,3.50595]
[1735628969664,0.29814,3358.9,3358.8,3.2078]
[1735628970071,0.29815,3358.8,3358.7,0.4399]
[1735628970677,0.29815,3358.8,3358.7,0.73806]
[1735628971876,0.4509,3359.1,3358.7,0.4399]
[1735628972177,0.29813,3359.1,3359.0,0.29813]
[1735628972773,1.60556,3359.4,3358.7,3.6477]
[1735628972976,0.29815,3359.0,3358.9,0.29814]
[1735628974483,1.60556,3359.4,3358.7,3.6477]
[1735628974777,0.29815,3358.9,3358.8,0.29814]
[1735628975877,0.7453,3359.3,3358.7,3.6477]
[1735628975878,0.29815,3358.8,3358.7,3.94586]
[1735628976775,0.29815,3358.8,3358.7,3.2078]
[1735628976983,0.29815,3358.8,3358.7,3.50596]
[1735628977179,0.29815,3358.8,3358.7,3.2078]
[1735628977575,0.29815,3358.8,3358.7,3.50596]
[1735628978979,0.29815,3358.8,3358.7,3.2078]
[1735628980776,0.29815,3358.8,3358.7,3.50596]
[1735628983276,0.29815,3358.8,3358.7,3.2078]
[1735628984082,0.29821,3358.3,3358.2,0.29819]
[1735628984277,0.29821,3358.3,3358.2,0.71969]
[1735628984484,0.29821,3358.3,3358.2,41.51969]
[1735628985379,0.29817,3358.7,3358.6,0.29816]
[1735628986181,0.74535,3359.0,3358.2,41.96701]
[1735628986182,2.25157979,3358.9,3358.2,41.96701]
[1735628986485,0.29819,3358.5,3358.4,0.29817]
[1735628986782,0.29817,3358.7,3358.6,0.29815]
[1735628986982,4.047,3359.1,3358.2,40.8]
[1735628987176,0.29815,3359.0,3358.9,0.29813]
[1735628992383,1.18606,3359.4,3359.0,0.29812]
[1735628992384,0.29813,3359.1,3359.0,0.29812]
[1735628992692,3.2078,3359.6,3358.9,3.2078]
[1735628992979,0.29811,3359.4,3359.3,0.29809]
[1735628993388,0.29811,3359.4,3359.3,41.09809]
[1735628994287,0.435,3359.7,3359.3,40.8]
[1735628994491,2.99674979,3359.8,3359.3,40.8]
[1735628994492,0.29809,3359.6,3359.5,0.29808]
[1735628995379,0.4285,3359.9,3359.4,0.8669]
[1735628995583,0.29809,3359.5,3359.4,1.16499]
[1735628998294,0.29809,3359.5,3359.4,1.60379]
[1735629000592,0.29809,3359.5,3359.4,0.8732]
[1735629000789,2.54966979,3359.5,3359.4,0.4388]
[1735629001689,0.29812,3359.2,3359.1,0.4397]
[1735629002092,0.29812,3359.2,3359.1,0.73783]
[1735629002286,0.4369,3359.4,3359.1,0.4397]
[1735629002486,0.29812,3359.3,3359.2,0.29811]
[1735629002788,0.29812,3359.3,3359.1,0.4397]
[1735629002789,0.2981,3359.5,3359.4,0.29809]
[1735629006497,2.99675979,3359.8,3359.1,0.4397]
[1735629006794,0.29812,3359.2,3359.1,0.73782]
[1735629007098,0.29812,3359.2,3359.1,41.53782]
[1735629007397,2.99682979,3359.5,3359.2,0.2981]
[1735629007398,0.29812,3359.3,3359.2,0.2981]
[1735629007791,0.2981,3359.4,3359.3,0.29809]
[1735629008300,0.29812,3359.3,3359.2,0.29812]
[1735629008898,0.29812,3359.2,3359.1,41.53782]
[1735629009897,0.29812,3359.2,3359.1,41.09812]
[1735629010796,2.25157979,3359.5,3359.1,40.8]
[1735629011091,0.2981,3359.5,3359.4,0.29809]
[1735629011496,0.29808,3359.7,3359.6,0.29807]
[1735629012685,5.83492077,3359.8,3359.3,3.2078]
[1735629012686,6.13299077,3359.8,3359.7,0.29807]
[1735629012890,0.29806,3359.9,3359.5,0.74523]
[1735629013095,0.29806,3359.9,3359.8,0.29806]
[1735629017498,3.2078,3360.0,3359.6,0.4151]
[1735629017699,3.50585,3360.0,3359.9,0.29805]
[1735629018393,5.90247979,3360.4,3359.6,1.1603]
[1735629018603,5.90247979,3360.4,3360.1,0.29802]
[1735629018604,0.29804,3360.2,3360.1,0.29802]
[1735629019298,0.29804,3360.2,3360.1,41.09802]
[1735629019498,0.29804,3360.2,3360.1,41.09804]
[1735629023497,0.29804,3360.2,3360.0,0.29804]
[1735629023696,0.29804,3360.1,3360.0,0.29804]
[1735629024101,0.29804,3360.1,3360.0,41.09804]
[1735629026001,3.6509,3360.4,3360.0,40.8]
[1735629026192,0.29803,3360.3,3360.2,0.29802]
[1735629026397,0.29803,3360.3,3360.2,0.71802]
[1735629027408,3.50578,3360.8,3360.7,0.29798]
[1735629030305,3.2078,3360.8,3360.7,0.29798]
[1735629030612,0.29795,3361.2,3361.1,0.29794]
[1735629030908,0.29796,3361.1,3361.0,0.29795]
[1735629031108,0.29796,3361.0,3360.9,0.29796]
[1735629031403,0.29797,3360.9,3360.8,1.15937]
[1735629031903,0.29795,3361.1,3361.0,0.29794]
[1735629032207,0.844,3361.3,3360.8,41.6614]
[1735629032399,0.29797,3361.0,3360.9,0.29796]
[1735629033202,0.29797,3361.0,3360.8,41.6614]
[1735629033203,0.29795,3361.2,3361.1,0.29793]
[1735629034106,3.2078,3361.4,3360.8,41.6614]
[1735629034301,0.29794,3361.3,3361.2,0.29793]
[1735629050022,0.29794,3361.3,3361.0,0.4568]
[1735629050023,0.29795,3361.1,3361.0,0.4568]
[1735629050520,0.29795,3361.1,3361.0,0.75476]
[1735629053623,1.36229009,3361.1,3361.0,0.75476]
[1735629054225,1.36229009,3361.1,3361.0,0.29796]
[1735629055120,0.29797,3360.9,3360.8,41.95937]
[1735629055424,0.29797,3360.9,3360.8,41.54257]
[1735629055621,1.36231009,3360.9,3360.8,41.54257]
[1735629056022,0.29797,3360.9,3360.8,41.54257]
[1735629058420,0.8625,3361.0,3360.8,41.2446]
[1735629058628,1.16047,3361.0,3360.9,0.29797]
[1735629061231,1.17714,3361.3,3361.2,0.29793]
[1735629061232,0.29794,3361.3,3361.2,0.29793]
[1735629061724,0.29796,3361.1,3361.0,0.29795]
[1735629064430,0.29797,3361.0,3360.9,0.29796]
[1735629068837,0.75145,3361.1,3361.0,0.29796]
[1735629072740,0.4535,3361.1,3360.9,4.69060264]
[1735629072940,0.29796,3361.0,3360.9,4.69060264]
[1735629073141,0.29796,3361.0,3360.9,4.98857264]
[1735629073440,0.29796,3361.0,3360.9,0.29797]
[1735629076443,0.29796,3361.0,3360.9,4.98857264]
[1735629078444,1.36251103,3361.0,3360.9,4.98857264]
[1735629078748,1.36251103,3361.0,3360.9,0.29797]
[1735629080742,0.29797,3360.9,3360.8,4.69060264]
[1735629080943,4.38757,3360.9,3360.8,2.87760264]
[1735629081145,9.0896,3360.9,3360.6,9.36058679]
[1735629081438,1.36253103,3360.7,3360.6,9.36058679]
[1735629082240,0.29801,3360.4,3360.3,40.8]
[1735629082546,3.50581,3360.4,3360.3,40.8]
[1735629083443,14.06526708,3360.4,3359.6,0.451]
[1735629083645,1.06455103,3359.7,3359.6,0.451]
[1735629083841,1.36262103,3359.7,3359.6,0.74908]
[1735629084147,1.36262103,3359.7,3359.6,41.54908]
[1735629084441,1.36262103,3359.7,3359.6,41.251]
[1735629084636,1.06455103,3359.7,3359.3,3.5059]
[1735629084841,1.36265103,3359.4,3359.3,3.2078]
[1735629085038,1.06455103,3359.4,3359.3,40.8]
[1735629085247,1.06455103,3359.4,3359.1,10.26478679]
[1735629085248,0.29812,3359.2,3359.1,10.26478679]
[1735629085448,1.36267103,3359.2,3359.1,10.26478679]
[1735629085745,1.36267103,3359.2,3359.1,51.06478679]
[1735629086139,1.36267103,3359.2,3359.1,41.7042]
[1735629088245,0.29812,3359.2,3359.1,41.7042]
[1735629089037,2.5492568,3359.2,3359.1,40.8]
[1735629089243,0.29814,3358.9,3358.8,0.29815]
[1735629090639,0.29814,3359.0,3358.9,0.29814]
[1735629091446,0.29813,3359.1,3359.0,0.29813]
[1735629092049,0.29814,3359.0,3358.9,0.29814]
[1735629092350,0.29814,3359.0,3358.8,40.8]
[1735629092351,0.29813,3359.1,3359.0,0.29813]
[1735629092648,0.29814,3359.0,3358.9,0.29814]
[1735629093440,6.2041668,3359.6,3358.8,40.8]
[1735629093752,0.29814,3359.0,3358.9,0.29814]
[1735629094151,0.29814,3358.9,3358.8,41.09815]
[1735629095053,0.29814,3358.9,3358.8,40.8]
[1735629095548,0.29814,3358.9,3358.8,41.09815]
[1735629097548,3.2078,3359.2,3359.0,0.29813]
[1735629097549,0.29813,3359.1,3359.0,0.29813]
[1735629102654,0.74525,3359.4,3358.8,40.8]
[1735629102852,0.29814,3359.0,3358.9,0.29814]
[1735629103051,0.74525,3359.4,3358.8,40.8]
[1735629103252,0.29814,3358.9,3358.8,41.09814]
[1735629104352,0.29814,3359.0,3358.9,0.29814]
[1735629104659,0.29814,3358.9,3358.8,41.09814]
[1735629105158,0.29814,3358.9,3358.8,41.09815]
[1735629105559,0.29814,3358.9,3358.8,40.8]
[1735629106962,0.29818,3358.5,3358.4,0.8646]
[1735629107363,0.29818,3358.5,3358.4,41.6646]
[1735629108253,0.29818,3358.5,3358.4,42.1083]
[1735629111065,5.74546,3358.5,3357.3,0.29827]
[1735629111267,0.29826,3357.6,3357.5,0.4586]
[1735629111562,0.29826,3357.6,3357.5,40.8]
[1735629111761,0.29827,3357.5,3357.4,0.4506]
[1735629112362,2.5494068,3357.5,3357.4,0.4506]
[1735629114465,0.29827,3357.5,3357.4,0.4506]
[1735629114761,3.2078,3358.0,3357.4,0.4506]
[1735629114963,0.29824,3357.9,3357.8,0.29823]
[1735629115267,0.29824,3357.9,3357.8,41.09823]
[1735629119365,3.95332,3358.3,3357.7,0.29824]
[1735629119366,0.29825,3357.8,3357.7,0.29824]
[1735629120866,0.29825,3357.8,3357.7,41.09824]
[1735629122973,0.29824,3357.9,3357.8,0.29823]
[1735629125469,0.29822,3358.2,3358.1,0.29821]
[1735629128177,0.74544,3358.6,3358.0,0.4194]
[1735629128178,2.2511368,3358.8,3358.0,0.4194]
[1735629128477,0.29821,3358.2,3358.1,0.4251]
[1735629131878,0.29821,3358.2,3358.1,0.72331]
[1735629132073,0.29821,3358.2,3358.1,0.4251]
[1735629133379,0.29823,3357.9,3357.5,40.8]
[1735629133577,0.29826,3357.6,3357.5,41.2595]
[1735629135775,0.29826,3357.7,3357.6,0.29825]
[1735629136377,1.93152,3358.3,3357.5,41.2595]
[1735629136676,0.29823,3358.0,3357.9,0.29823]
[1735629139183,0.29824,3357.9,3357.8,0.29824]
[1735629139684,0.74553,3358.2,3357.7,3.2078]
[1735629139984,0.29826,3357.7,3357.6,0.29824]
[1735629141483,0.29825,3357.9,3357.8,0.29823]
[1735629141983,0.29826,3357.7,3357.6,0.29825]
[1735629142588,0.29826,3357.7,3357.6,0.71825]
[1735629146300,0.74553,3358.2,3357.8,0.29823]
[1735629146483,0.29824,3357.9,3357.8,0.29823]
[1735629146787,0.29824,3357.8,3357.7,3.50605]
[1735629148190,0.29824,3357.8,3357.7,0.29825]
[1735629148383,0.29824,3357.8,3357.7,0.4281]
[1735629150089,0.29824,3357.8,3357.7,0.72635]
[1735629152296,0.29824,3357.9,3357.8,0.29823]
[1735629154292,3.95329,3358.4,3357.7,3.6359]
[1735629154493,0.29822,3358.1,3358.0,0.29821]
[1735629155194,0.29821,3358.2,3358.1,0.2982]
[1735629155994,0.29821,3358.3,3358.2,0.2982]
[1735629156686,0.29821,3358.3,3358.2,1.1615]
[1735629157288,0.74542,3358.7,3358.2,0.8633]
[1735629157492,0.29817,3358.7,3358.6,0.29816]
[1735629157794,9.04257013,3358.8,3358.7,0.29816]
[1735629157795,6.13293013,3358.8,3358.7,0.29816]
[1735629157994,5.83477013,3358.8,3358.7,0.29816]
[1735629158697,0.29814,3359.0,3358.7,40.8]
[1735629158994,0.29814,3359.0,3358.9,0.29814]
[1735629159389,5.83477013,3359.2,3358.8,0.885]
[1735629159591,6.13289013,3359.2,3358.9,3.2078]
[1735629159802,0.29813,3359.1,3359.0,0.29813]
[1735629161899,0.29812,3359.2,3359.1,0.29811]
[1735629162697,0.29809,3359.5,3359.4,0.29809]
[1735629162891,0.29811,3359.4,3359.3,0.2981]
[1735629163690,3.2078,3359.6,3358.9,5.4589368]
[1735629163890,3.2078,3359.6,3359.2,0.29811]
[1735629163891,0.29812,3359.3,3359.2,0.29811]
[1735629164298,0.29813,3359.2,3359.1,0.29812]
[1735629165595,0.29813,3359.1,3359.0,0.29813]
[1735629166193,2.9963368,3359.7,3358.9,3.2078]
[1735629166403,0.29812,3359.3,3359.2,0.2981]
[1735629166591,2.9963368,3359.7,3358.9,3.2078]
[1735629166592,2.2511368,3359.7,3358.9,3.2078]
[1735629166900,0.29811,3359.4,3359.3,0.2981]
[1735629169304,0.29811,3359.3,3359.2,0.72581]
[1735629170804,0.29811,3359.3,3359.2,0.4277]
[1735629171197,0.29811,3359.3,3359.2,0.72582]
[1735629171594,0.29811,3359.4,3359.3,0.2981]
[1735629171801,2.9963368,3359.7,3359.2,0.4277]
[1735629171802,0.29811,3359.3,3359.2,0.72581]
[1735629172398,2.2511368,3359.7,3359.2,0.4277]
[1735629172604,0.2981,3359.5,3359.4,0.29809]
[1735629173807,0.29811,3359.4,3359.3,0.2981]
[1735629175301,0.29811,3359.3,3359.2,0.72581]
[1735629177104,2.9963368,3359.7,3359.2,0.4277]
[1735629177301,0.29811,3359.4,3359.3,0.2981]
[1735629180915,2.2511368,3359.7,3359.2,0.4277]
[1735629181108,0.2981,3359.5,3359.4,0.29809]
[1735629183114,0.2981,3359.5,3359.4,0.72549]
[1735629188022,3.2078,3359.9,3359.4,0.4274]
[1735629188217,3.50586,3359.9,3359.8,0.29806]
[1735629188624,3.50586,3359.9,3359.8,41.09806]
[1735629188920,3.50586,3359.9,3359.8,40.8]
[1735629189923,3.2078,3359.9,3359.7,0.29807]
[1735629190125,0.29806,3359.8,3359.7,0.29807]
[1735629190426,0.29806,3359.8,3359.7,41.09807]
[1735629192622,0.29806,3359.8,3359.7,0.29807]
[1735629196824,0.29808,3359.7,3359.6,0.29807]
[1735629199222,0.74516,3359.9,3359.4,0.4274]
[1735629199429,0.29809,3359.5,3359.4,0.72549]
[1735629199631,0.29809,3359.5,3359.4,41.52549]
[1735629201320,1.06533288,3359.7,3359.4,41.2274]
[1735629201627,1.36341288,3359.7,3359.6,0.29808]
[1735629202022,0.29808,3359.7,3359.6,0.29808]
[1735629202231,1.81049288,3359.9,3359.6,40.8]
[1735629202431,1.36340288,3359.7,3359.6,41.09808]
[1735629205429,0.29807,3359.7,3359.6,41.09808]
[1735629208040,1.06533288,3359.9,3359.6,40.8]
[1735629208233,0.29807,3359.8,3359.7,0.29806]
[1735629208434,0.29807,3359.8,3359.7,0.71516]
[1735629215640,0.29807,3359.8,3359.7,5.3962325]
[1735629221149,0.29807,3359.8,3359.7,5.0981725]
[1735629221443,0.29807,3359.8,3359.7,0.71517]
[1735629221747,0.29807,3359.8,3359.7,0.4171]
[1735629221945,0.29807,3359.8,3359.7,0.71517]
[1735629222543,1.06533288,3359.9,3359.6,48.6888725]
[1735629222746,1.36340288,3359.7,3359.6,7.8888725]
[1735629224152,1.36340288,3359.7,3359.6,3.2078]
[1735629225149,1.36340288,3359.7,3359.4,5.5465725]
[1735629225150,1.06533288,3359.7,3359.4,5.5465725]
[1735629225350,4.57122288,3359.5,3359.4,5.1084725]
[1735629225650,4.57122288,3359.5,3359.4,4.6810725]
[1735629226651,4.27313288,3359.5,3359.0,0.8492]
[1735629226949,1.36346288,3359.1,3359.0,0.8492]
[1735629230351,1.36346288,3359.1,3359.0,1.14733]
[1735629230653,1.36346288,3359.1,3359.0,0.8492]
[1735629235957,1.36346288,3359.1,3359.0,0.4223]
[1735629236759,0.29813,3359.0,3358.9,0.4541]
[1735629236959,0.29814,3358.9,3358.8,0.4177]
[1735629237157,1.36347288,3358.9,3358.8,0.4177]
[1735629239665,0.29814,3358.9,3358.8,0.4177]
[1735629243157,0.29817,3358.6,3358.5,0.4243]
[1735629243365,1.36350288,3358.6,3358.5,0.4243]
[1735629244966,1.36350288,3358.6,3358.5,0.72248]
[1735629245665,1.36350288,3358.6,3358.5,0.4243]
[1735629248366,0.29817,3358.6,3358.5,0.72248]
[1735629248567,0.74533,3359.1,3358.5,0.4243]
[1735629248766,0.29814,3359.0,3358.8,0.29814]
[1735629248973,0.37463288,3359.1,3359.0,0.29813]
[1735629249172,3.50592,3359.2,3359.1,0.71333]
[1735629249370,3.50592,3359.2,3359.1,41.51333]
[1735629249668,3.50592,3359.2,3359.1,0.71333]
[1735629249669,0.29812,3359.2,3359.1,0.71333]
[1735629249968,0.29812,3359.2,3359.1,41.51333]
[1735629250479,1.36345288,3359.2,3359.1,41.51333]
[1735629254379,1.36345288,3359.2,3359.1,41.2152]
[1735629254677,1.36345288,3359.2,3359.1,41.51333]
[1735629255078,1.36345288,3359.2,3359.1,0.71333]
[1735629255679,1.36345288,3359.2,3359.1,0.4152]
[1735629258679,1.36345288,3359.2,3359.1,0.71333]
[1735629259584,1.36345288,3359.2,3359.1,0.4152]
[1735629280287,1.36345288,3359.2,3358.9,0.4529]
[1735629280488,1.36346288,3359.0,3358.9,0.4529]
[1735629281087,1.36346288,3359.0,3358.9,0.75104]
[1735629281594,1.36346288,3359.0,3358.9,41.55104]
[1735629283990,1.36346288,3359.0,3358.9,41.2529]
[1735629284195,1.36346288,3359.0,3358.9,41.55104]
[1735629285195,1.36346288,3359.0,3358.9,41.2529]
[1735629285986,1.36346288,3359.0,3358.9,0.4529]
[1735629289591,4.57126288,3359.0,3358.9,0.4529]
[1735629292002,1.36346288,3359.0,3358.9,0.4529]
[1735629293398,1.36346288,3359.0,3358.9,0.75104]
[1735629300114,1.36346288,3359.0,3358.9,5.4321125]
[1735629301101,5.63659576,3359.0,3358.9,11.04942295]
[1735629301306,2.42879576,3359.0,3358.9,11.04942295]
[1735629301510,2.42879576,3359.0,3358.9,10.59652295]
[1735629301817,5.63659576,3359.0,3358.9,10.59652295]
[1735629302512,5.63659576,3359.0,3358.5,0.4336]
[1735629302513,0.29817,3358.6,3358.5,0.4336]
[1735629302712,1.36350288,3358.6,3358.5,0.4336]
[1735629303413,4.57130288,3358.6,3358.5,0.4336]
[1735629303615,0.29818,3358.5,3358.4,4.6810725]
[1735629304007,4.27313288,3358.6,3358.2,0.892]
[1735629304207,0.2982,3358.3,3358.2,0.892]
[1735629304914,0.29821,3358.1,3358.0,4.6810725]
[1735629305118,2.42887576,3358.1,3358.0,4.6810725]
[1735629305512,0.29823,3357.9,3357.8,4.6810725]
[1735629305711,1.36356288,3357.9,3357.8,4.6810725]
[1735629307011,0.29825,3357.7,3357.6,0.4388]
[1735629307315,1.36358288,3357.7,3357.6,0.4388]
[1735629308816,4.57138288,3357.7,3357.6,0.4388]
[1735629309017,0.29828,3357.4,3357.3,0.4563]
[1735629309318,1.36361288,3357.4,3357.3,0.9043]
[1735629309920,1.36361288,3357.4,3357.3,0.4563]
[1735629310314,2.55245177,3357.4,3357.3,0.4563]
[1735629311115,0.29834,3356.7,3356.6,4.6810725]
[1735629311415,2.55251177,3356.7,3356.6,4.6810725]
[1735629311615,2.25417177,3356.7,3356.5,0.4594]
[1735629311817,0.29835,3356.6,3356.5,0.4594]
[1735629318834,0.74335,3356.6,3356.5,0.4594]
[1735629319736,0.2984,3356.0,3355.9,3.2078]
[1735629320039,2.55257177,3356.0,3355.9,4.0507]
[1735629320226,2.55257177,3356.0,3355.9,44.8507]
[1735629320429,2.55257177,3356.0,3355.9,4.0507]
[1735629320743,2.55257177,3356.0,3355.9,0.8429]
[1735629321539,2.25417177,3356.3,3355.9,0.8429]
[1735629321734,3.2078,3356.4,3355.9,0.8429]
[1735629321940,3.2078,3356.7,3355.9,11.30487177]
[1735629322238,6.20773177,3357.2,3356.6,0.29835]
[1735629322435,0.29833,3356.8,3356.7,1.16523]
[1735629323033,2.25417177,3356.9,3356.8,0.29833]
[1735629323034,2.55250177,3356.9,3356.8,0.29833]
[1735629324033,0.74568,3357.5,3357.0,0.2983]
[1735629324234,0.74571,3357.4,3356.9,0.29831]
[1735629324544,0.29832,3357.0,3356.9,0.29831]
[1735629328844,2.25417177,3357.2,3356.8,0.4512]
[1735629329031,2.55249177,3356.9,3356.8,0.4512]
[1735629333047,2.55249177,3356.9,3356.7,0.8669]
[1735629333048,2.25417177,3356.9,3356.7,0.441]
[1735629333241,2.25417177,3356.9,3356.3,0.8962]
[1735629333242,3.2078,3356.8,3356.3,0.8962]
[1735629333446,2.55254177,3356.4,3356.3,0.8962]
[1735629336841,2.55254177,3356.4,3356.3,1.19457]
[1735629337042,0.29837,3356.4,3356.3,1.19457]
[1735629337243,2.25417177,3356.7,3356.3,0.8962]
[1735629337543,2.55251177,3356.7,3356.6,0.29835]
[1735629337742,0.29834,3356.7,3356.6,0.29835]
[1735629338249,0.29834,3356.7,3356.6,41.09835]
[1735629339343,2.25417177,3357.0,3356.6,40.8]
[1735629339544,0.29834,3356.9,3356.8,0.29832]
[1735629340045,0.29834,3356.8,3356.7,0.29833]
[1735629342545,0.29834,3356.7,3356.6,44.30614]
[1735629348441,0.29834,3356.7,3356.6,44.30615]
[1735629348650,0.29834,3356.7,3356.6,44.0078]
[1735629348954,0.29834,3356.7,3356.6,44.30615]
[1735629349850,2.25417177,3357.0,3356.6,44.0078]
[1735629350055,0.29832,3357.0,3356.9,0.29831]
[1735629350455,2.25417177,3357.3,3357.2,0.29829]
[1735629350456,0.29829,3357.3,3357.2,0.29829]
[1735629350657,8.11348721,3357.6,3357.1,3.2078]
[1735629350857,2.25417177,3357.6,3357.1,3.2078]
[1735629351158,5.85931544,3357.7,3357.1,3.2078]
[1735629351159,5.85931544,3357.7,3357.6,0.29826]
[1735629351647,4.47731544,3357.7,3357.6,41.09826]
[1735629351853,7.00172416,3358.1,3357.6,41.54476]
[1735629352052,7.00172416,3358.1,3358.0,0.29822]
[1735629352451,11.5987025,3358.5,3358.0,3.2078]
[1735629352452,0.29818,3358.5,3358.0,3.2078]
[1735629352653,0.4597,3359.0,3358.4,3.2078]
[1735629352854,0.29815,3358.9,3358.8,0.29814]
[1735629353054,0.29815,3358.9,3358.8,40.8]
[1735629354054,0.4597,3359.0,3358.5,0.4465]
[1735629354249,0.29818,3358.5,3358.4,3.2078]
[1735629354450,0.29818,3358.5,3358.4,3.50599]
[1735629354650,0.29818,3358.5,3358.4,44.0078]
[1735629355356,0.29818,3358.5,3358.4,3.2078]
[1735629355651,0.29821,3358.2,3358.1,0.4215]
[1735629356861,0.29821,3358.2,3357.8,5.09651325]
[1735629356862,2.25417177,3358.2,3357.8,5.09651325]
[1735629357059,0.29822,3358.1,3358.0,0.29822]
[1735629357462,0.29822,3358.0,3357.9,3.50603]
[1735629357662,0.29822,3358.0,3357.9,3.2078]
[1735629358161,0.29823,3357.9,3357.8,0.71874]
[1735629359263,0.29822,3358.1,3358.0,0.29822]
[1735629360861,0.72801,3358.2,3358.1,0.29821]
[1735629361563,0.29822,3358.1,3358.0,0.29821]
[1735629362863,2.25417177,3358.5,3357.9,3.2078]
[1735629363063,0.2982,3358.3,3358.2,0.2982]
[1735629363663,0.4368,3358.7,3357.9,3.2078]
[1735629363965,0.29819,3358.5,3358.4,0.29818]
[1735629364165,2.25417177,3358.5,3357.9,3.2078]